Cogmind - Beta 13 @@@ ROGUE MODE // 2024.04.15 @ 12:35:15 Player: Red_Zig Result: Destroyed by as-31110 with Assembled Rifle Performance ------------- Evolutions (0) 0 Regions Visited (2) 400 Robots Destroyed (20) 100 Value Destroyed (266) 266 Prototype IDs (0) 0 Alien Tech Used (0) 0 Bonus (-23) -23 TOTAL SCORE: 743 Bonus ------- Friendly Fire -23 Cogmind --------- Core Integrity 0/250 Matter 103/300 Energy 100/100 System Corruption 0% Temperature Cool (11) Movement Flying (35) Location -10/Mines Parts ------- > --- POWER (1) -------- (None) > --- PROPULSION (2) --- VTOL Module > --- UTILITY (2) ------ Terrain Scanner Terrain Scan Processor > --- WEAPON (2) ------- (None) > --- INVENTORY (5) ---- VTOL Module VTOL Module Transport Network Coupler Hacking Suite Improved Light Cannon Peak State ------------ > --- POWER ------------ Light Ion Engine > --- PROPULSION ------- VTOL Module VTOL Module > --- UTILITY ---------- Terrain Scanner Terrain Scan Processor > --- WEAPON ----------- Improved Light Cannon Improved Light Cannon > --- INVENTORY -------- VTOL Module VTOL Module Tractor Beam EM Pulse Gun [Rating: 12] Favorites ----------- Power Light Ion Engine Engine Light Ion Engine Propulsion Light Treads Treads Light Treads Flight Unit VTOL Module Utility Medium Storage Unit Device Terrain Scanner Storage Medium Storage Unit Processor Terrain Scan Processor Weapon Small Laser Energy Gun Small Laser Ballistic Gun Assault Rifle Ballistic Cannon Improved Light Cannon Launcher Grenade Launcher Build | -11 -10 -10 ------- Run | Yrd Mat Min Slots Evolved . | . . . Power . | . . . Propulsion . | . . . Utility . | . . . Weapon . | . . . Parts Attached 24 | 6 17 1 Power 2 | 1 1 . Engine 2 | 1 1 . Core . | . . . Reactor . | . . . Propulsion 4 | 2 2 . Treads 2 | 2 . . Leg . | . . . Wheel . | . . . Hover . | . . . Flight 2 | . 2 . Utility 6 | 1 5 . Device 2 | . 2 . Storage 3 | 1 2 . Processor 1 | . 1 . Hackware . | . . . Protection . | . . . Artifact . | . . . Weapon 12 | 2 9 1 Energy Gun 3 | 1 2 . Energy Cannon . | . . . Ballistic Gun 1 | 1 . . Ballistic Cannon 7 | . 7 . Launcher 1 | . . 1 Special Weapon . | . . . Impact Weapon . | . . . Slashing Weapon . | . . . Piercing Weapon . | . . . Special Melee Weapon . | . . . Unidentified Prototypes . | . . . Parts Lost 7 | . 4 3 Power 2 | . 1 1 Propulsion 3 | . 2 1 Utility . | . . . Weapon 2 | . 1 1 Highest Loss Streak 3 | . 2 3 To Critical Strikes . | . . . Average Slot Usage (%) 85 | . 85 85 Engine 11 | . 11 14 Treads 16 | . 17 . Flight 8 | . 7 28 Device 3 | . 3 14 Storage 16 | . 17 . Processor 3 | . 3 14 Energy Gun 9 | . 9 . Ballistic Gun 8 | . 8 . Ballistic Cannon 5 | . 5 10 Naked Turns . | . . . Heaviest Build 96 | 11 96 8 Greatest Support 40 | 40 40 8 Greatest Overweight (x) 31 | . 31 . Average Overweight (x) . | . . . Largest Inventory Capacity 25 | 8 25 5 Average Capacity 14 | 7 15 5 Most Carried 5 | 4 5 5 Average Carried 4 | 2 4 5 Final Capacity 8 | 8 5 5 Final Carried 5 | 4 5 5 Class Distribution -------------------- 76% | Mutant 23% | Sprinter Dominant Class ---------------- Mutant | -10/Materials Sprinter | -10/Mines Resources | -11 -10 -10 ----------- Run | Yrd Mat Min Matter Collected 577 | 244 333 . Remotely 38 | . 38 . Salvage Created 512 | . 495 17 Parts 35 | . 35 . Haulers Intercepted 2 | . 2 . Recyclers Shooed . | . . . Parts Field Recycled . | . . . Retrieved Matter . | . . . Parts Self-Destructed . | . . . Prevented . | . . . Kills | -11 -10 -10 ------- Run | Yrd Mat Min Combat Hostiles Destroyed 20 | . 10 10 Guns 6 | . 6 . Cannons 4 | . 4 . AOE 10 | . . 10 Classes Destroyed 8 | . 7 1 Worker 2 | . 2 . Builder 2 | . 2 . Hauler 2 | . 2 . Recycler 1 | . 1 . Operator 3 | . 3 . Swarmer 6 | . 6 . Grunt 4 | . 4 . Assembled 10 | . . 10 Best Kill Streak 10 | . 5 10 Combat Bots Only 10 | . 4 10 Max Kills in Single Turn 5 | . 1 5 Gunslinging . | . . . Exploded 5 | . . 5 Melee . | . . . Uniques/NPCs Destroyed . | . . . Combat | -11 -10 -10 -------- Run | Yrd Mat Min Hostile Shots Fired 138 | . 119 19 Missed 36 | . 31 5 Damage Taken 1138 | . 955 183 Core 258 | . 208 50 Absorbed by Shields . | . . . Core Remaining (%) 100 | 100 . . Volleys Fired 80 | . 75 5 Largest 2 | . 2 1 Hottest 79 | . 79 30 Shots Fired 147 | . 142 5 Gun 99 | . 99 . Cannon 43 | . 43 . Launcher 5 | . . 5 Special . | . . . Kinetic 92 | . 92 . Thermal 50 | . 50 . Explosive 5 | . . 5 Electromagnetic . | . . . Robot Hit Streak 9 | . 9 4 Robot Miss Streak 5 | . 5 . Penetration Max . | . . . Secondary Targets 1 | . 1 . Max Gunslinging Chain 1 | . 1 . Shots Hit Robots 85 | . 83 2 Core Hits 53 | . 28 25 Critical Kills . | . . . Critical Parts Destroyed . | . . . Critical Strikes 1 | . 1 . Blast 1 | . 1 . Melee Attacks . | . . . Impact . | . . . Slashing . | . . . Piercing . | . . . Sneak Attacks . | . . . Combat Hostiles . | . . . Follow-up Attacks . | . . . Damage Inflicted 1882 | . 1248 634 Guns 724 | . 724 . Cannons 524 | . 524 . Explosions 634 | . . 634 Melee . | . . . Ramming . | . . . Kinetic 895 | . 895 . Thermal 353 | . 353 . Explosive 634 | . . 634 Electromagnetic . | . . . Impact . | . . . Slashing . | . . . Piercing . | . . . Highest Corruption . | . . . Average Corruption . | . . . Corruption Purged . | . . . Corruption Blocked . | . . . Overload Shots . | . . . Overflow Damage 23 | . . 23 Projectiles . | . . . Explosions 23 | . . 23 Melee . | . . . Knockbacks 7 | . 7 . Impact . | . . . Kinetic 7 | . 7 . Secondary . | . . . Self-Inflicted Damage 7 | . . 7 Shots 1 | . . 1 Rammed . | . . . Targets Rammed . | . . . Kicked . | . . . Crushed . | . . . Highest Temperature 178 | . 178 11 Average Temperature 66 | . 66 11 Received Heat Transfer 467 | . 441 26 Siege Activations . | . . . Robots Corrupted . | . . . Combat Hostiles . | . . . Parts Fried . | . . . Impact Corruptions . | . . . Robots Melted . | . . . Combat Hostiles . | . . . Parts Melted . | . . . Heat Transferred 800 | . 800 . Parts Sabotaged . | . . . Parts Stolen . | . . . Parts Stripped . | . . . Power Chain Reactions . | . . . Alert | -11 -10 -10 ------- Run | Yrd Mat Min Peak Influence 142 | . 142 56 Initial 16 | . . 16 Average 51 | . 56 22 Maximum Alert Level . | . . . Low Security (%) 100 | 100 100 100 Level 1 . | . . . Level 2 . | . . . Level 3 . | . . . Level 4 . | . . . Level 5 . | . . . High Security . | . . . Max Security . | . . . Squads Dispatched 2 | . 2 . Investigation . | . . . Extermination . | . . . Reinforcement 2 | . 2 . Assault . | . . . Garrison . | . . . Intercept . | . . . Searches Triggered . | . . . Construction Impeded . | . . . Haulers Reinforced . | . . . Active Scanning Responses . | . . . Cargo Convoy Interrupts . | . . . Stealth | -11 -10 -10 --------- Run | Yrd Mat Min Distress Signals 1 | . 1 . Communications Jammed . | . . . Distress Signals . | . . . Times Spotted 39 | . 23 16 Peak Tracking Total 19 | . 4 19 Tactical Retreats 1 | . . 1 Traps | -11 -10 -10 ------- Run | Yrd Mat Min Traps Triggered . | . . . Indirectly . | . . . Trap Hack Attempts . | . . . Triggered . | . . . Disarmed . | . . . Reprogrammed . | . . . Reused . | . . . Traps Extracted . | . . . Installed . | . . . Triggered . | . . . Machines | -11 -10 -10 ---------- Run | Yrd Mat Min Machines Disabled 1 | . 1 . Max in Single Turn 1 | . 1 . Machines Repaired . | . . . Machines Dismantled . | . . . Machines Sabotaged . | . . . Overloaded Fab Kills . | . . . Hacking | -11 -10 -10 --------- Run | Yrd Mat Min Machines Accessed 1 | . 1 . Terminals 1 | . 1 . Fabricators . | . . . Repair Stations . | . . . Recycling Units . | . . . Scanalyzers . | . . . Garrison Access . | . . . Total Hacks 1 | . 1 . Successful . | . . . Failed 1 | . 1 . Catastrophic 1 | . 1 . Database Lockouts . | . . . Manual 1 | . 1 . Terminals 1 | . 1 . Fabricators . | . . . Repair Stations . | . . . Recycling Units . | . . . Scanalyzers . | . . . Garrison Access . | . . . Terminal Hacks . | . . . Fabricator Hacks . | . . . Repair Station Hacks . | . . . Recycling Unit Hacks . | . . . Scanalyzer . | . . . Garrison Access Hacks . | . . . Unauthorized Hacks . | . . . Terminals . | . . . Fabricators . | . . . Repair Stations . | . . . Recycling Units . | . . . Scanalyzers . | . . . Garrison Access . | . . . Data Cores Recovered 1 | . 1 . Used . | . . . Hacking Detections . | . . . Full Trace Events . | . . . Feedback Events . | . . . Feedback Blocked . | . . . Robot Schematics Acquired . | . . . Robots Built . | . . . Authchips . | . . . Time . | . . . Total Robot Build Rating . | . . . Part Schematics Acquired . | . . . Parts Built . | . . . Authchips . | . . . Time . | . . . Total Part Build Rating . | . . . Parts Repaired . | . . . Time . | . . . Parts Recycled . | . . . Recycled Matter . | . . . Retrieved Matter . | . . . Retrieved Components . | . . . Parts Scanalyzed . | . . . Part Schematics Acquired . | . . . Parts Damaged . | . . . Bothacking | -11 -10 -10 ------------ Run | Yrd Mat Min Used RIF Installer . | . . . Robots Hacked . | . . . Non-combat . | . . . Combat . | . . . Robot Hacks Applied . | . . . Relay Couplers Released . | . . . Fabnet Peak Effective % . | . . . Robots Rewired . | . . . Allies Hacked . | . . . Hacks Repelled . | . . . Allies | -11 -10 -10 -------- Run | Yrd Mat Min Total Allies . | . . . Largest Group . | . . . Highest-Rated Group . | . . . Highest-Rated Ally . | . . . Total Orders . | . . . Ally Attacks . | . . . Total Damage . | . . . Kills . | . . . Allies Corrupted . | . . . Allies Melted . | . . . Intel | -11 -10 -10 ------- Run | Yrd Mat Min Robot Analysis Total . | . . . Derelict Logs Recovered . | . . . Drone Launches . | . . . Drone Recoveries . | . . . Exploration | -11 -10 -10 ------------- Run | Yrd Mat Min Turns Passed 1088 | 69 978 41 Spaces Moved 776 | 37 643 96 Core 8 | 2 6 . Treads 230 | 35 195 . Legs . | . . . Wheels . | . . . Hover . | . . . Flight 538 | . 442 96 Fastest Speed 32 | 50 32 32 Average Speed 96 | 154 102 32 Slowest Speed 1600 | 160 1600 32 Overloaded Moves . | . . . Propulsion Burnouts . | . . . Robots Hopped 2 | . 2 . Cave-ins Triggered . | . . . Exploration Rate (%) 36 | 4 79 27 Regions Visited 2 Branch Regions 1 Pre-discovered Areas . | . . . Known Exits Taken . | . . . Unknown Exits Taken 2 | 1 1 . Scrap Searched . | . . . Spaces Dug . | . . . Terrain Destroyed 42 | . 1 41 Melee . | . . . Projectile 1 | . 1 . AOE 41 | . . 41 Terrain Rammed . | . . . Walls Destroyed . | . . . Machines Disabled . | . . . Actions | -11 -10 -10 --------- Run | Yrd Mat Min Total 970 | 46 822 102 Wait 64 | . 64 . Move 770 | 36 638 96 Hop 2 | . 2 . Pick Up 12 | 4 8 . Fast Attach 14 | 6 8 . Attach 7 | . 7 . Detach 6 | . 6 . Swap 3 | . 2 1 Drop 12 | . 12 . Fire 80 | . 75 5 Melee . | . . . Ram . | . . . Kick . | . . . Crush . | . . . Escape Stasis . | . . . Rewire . | . . . Trap . | . . . Miscellaneous . | . . . Route ------- -11/Scrapyard -10/Materials (discovered 4 exits: [*Mat x2] / [*Min x2]) -10/Mines History --------- Turn | Location | Event 7 | -11/Scrapyard | Discovered new exit (range 15) 70 | -11/Scrapyard | Entered Materials 325 | -10/Materials | Build established: Mutant 667 | -10/Materials | Discovered new exit (range 7) 745 | -10/Materials | Core integrity fell below 50% 813 | -10/Materials | Core integrity fell below 20% 887 | -10/Materials | Discovered new exit (range 15) 907 | -10/Materials | Discovered new exit (range 8) 957 | -10/Materials | Discovered new exit (range 6) 1048 | -10/Materials | Entered Mines 1074 | -10/Mines | Assembled infested the area 1079 | -10/Mines | Assisted by a Guerilla fighting off Assembled 1089 | -10/Mines | Destroyed by as-31110 with Assembled Rifle Last Messages --------------- 01083_ as-38329 destroyed. 01083_ as-20942 destroyed. 01083_ as-35142 destroyed. 01083_ as-19211 destroyed. 01083_ as-87406 destroyed. 01085_ as-26517 destroyed. 01085_ as-08646 destroyed. 01086_ 8T-D2Q(h): "I'll hold them off! Go on ahead or try to find another way!" 01086_ HV Slug penetrates Wall. 01087_ The unstable cave ceiling collapses. 01087_ Destroyed Asb. Hover Unit. 01087_ as-47822 destroyed. 01087_ VTOL Module destroyed. 01088_ HV Slug penetrates as-39395. 01088_ as-39395 knocked back. 01089_ as-39395 destroyed. 01089_ Destroyed Asb. F-torch. 01089_ as-79192 destroyed. 01089_ Grenade Launcher destroyed. Map ----- +----------------------------------------------------+ | ?????????????????????????# #????#?# #### #?? | | ???????????????????#?????## ##????#?# #??# #?# | | ??????????????????????????## #?#?????# #### ##?? | | ???????????????????????#?### ######### ###? | | ???????????????????????#?# ### ### | | ??????????????????### #### #############?## | | ?????????????# #???????#?##???### | | ?????????????# ###### #???????????###??## ### | | ?????????????????????#???# #??#????#?????????####? | | ?????????????????? ??#??## ##????#???#??????#?#??? | | ?????????????? ????????### ##????????#????????#?? | | ????????????????? ??#### #?????????#?????????? | | ?????????????????????## #??#???#????##??????? | | ??????????????????????# """ #?????????#?????????? | | ?????????????????#????# """ #?????#?????????????? | | ??????????????????????# """ ###????#?????#??????? | | ??????????????????????# ################?????? | | ????????????????#????## ### ??? | | ??????????????????#### ### ??? | | ??????????????????# ########?????????? | | ?????????????????# #???????? ???????? | | ?????????????##??# ## ########??#????????????? | | ??????????????##### #?# ##???#????#?????????????? | | ?????????? # #### ##??#???#???????????????? | | ?????????? h ########???????????????? | | ?????????? < a @ ###?????????????? | | ??????????a % #???????????????? | | ??????????aa # ###### #???????????????? | | ??????????? # ???#####?????????? ?? ??????????? | | ???????????????????????##?????#??? ? ????????????? | | ?????????????????#?#??#??????#???????????????????? | | ???????????????#????????#?????????? ?????????????? | | ???????????????????#???????#?? ??????????????????? | | ???????????????????????#? ???????????????????????? | | ???????????????????#????????#?? ?????????????????? | | ?????????????????????#???????????????????????????? | | ??????????????????????? ?????????????????????????? | | ????????????????????????? ?????????????????????? | | ????????????????????????? ???????????????????????? | | ?????????????????????????????????????????????????? | | ?????????????????????????????????????????????????? | | ?????????????????????????????????????????????????? | | ?????????????????????????????????????????????????? | | ?????????????????????????????????????????????????? | | ?????????????????????????????????????????????????? | | ?????????????????????????????????????????????????? | | ?????????????????????????????????????????????????? | | ?????????????????????????????????????????????????? | | ?????????????????????????????????????????????????? | | ?????????????????????????????????????????????????? | +----------------------------------------------------+ Best States ------------- Heat Dissipation 25 Energy Generation 10 Energy Capacity 125 Matter Stores 284 Matter Capacity 300 Sight Range 16 Terrain Scan Range 14 Terrain Scan Density 85 Evasion (%) 63 Recoil Reduction 2 Item Schematics ----------------- None Robot Schematics ------------------ None Fabricated ------------ Nothing Alien Tech Used ----------------- None Achievements -------------- None Challenges ------------ None Game ------ Seed CompositeSigixProtomatter Manual? 0 Play Time 00:14:18 Cumulative 26.7 hours Start 2024.04.15 @ 12:17:07 End 2024.04.15 @ 12:35:15 Sessions 1 Manual Loads 0 Difficulty Rogue Special Mode None Game No. 28 Rogue 16 Adventurer 12 Explorer 0 Win Type - Total 0 Types 0/0/0/0/0/0/0/0/0 Lore% 15 Gallery% 27 Achievement% 23 Wizard Run 0 Options --------- Layout 2 ASCII 0 Keyboard 0 Movement Mouse Keybinds 0 Fullscreen 1 Font 24/Smallcaps Map View 50x44 Zoom Use 3% Tactical HUD 1 Map Filters NONE Filters NONE Steam 1 RUN: 1b75ff4a-8ceb-48d4-be8d-ff563f510bd3